[Event "Titled Tuesday Blitz August 16 Early 2022"]
[White "Koniahli, Malek."]
[Black "Gil Alba, Hector Luis"]
[WhiteFideId "7603495"]
[BlackFideId "3504670"]
[WhiteElo "2097"]
[BlackElo "2331"]
[Result "1-0"]
[Round "03"]
[TimeControl "180+2"]
[Date "2022.08.18"]
[WhiteClock "0:00:00"]
[BlackClock "0:00:00"]

1. e4 {[%clk 0:00:00]}  c5 {[%clk 0:00:00]} 2. Nf3 {[%clk 0:00:00]}  Nc6 {[%clk 0:00:00]} 3. d4 {[%clk 0:00:00]}  cxd4 {[%clk 0:00:00]} 4. Nxd4 {[%clk 0:00:00]}  e5 {[%clk 0:00:00]} 5. Nb5 {[%clk 0:00:00]}  d6 {[%clk 0:00:00]} 6. c4 {[%clk 0:00:00]}  a6 {[%clk 0:00:00]} 7. N5c3 {[%clk 0:00:00]}  Be7 {[%clk 0:00:00]} 8. Be2 {[%clk 0:00:00]}  Bg5 {[%clk 0:00:00]} 9. Na3 {[%clk 0:00:00]}  Bxc1 {[%clk 0:00:00]} 10. Rxc1 {[%clk 0:00:00]}  Nf6 {[%clk 0:00:00]} 11. O-O {[%clk 0:00:00]}  O-O {[%clk 0:00:00]} 12. Nc2 {[%clk 0:00:00]}  Be6 {[%clk 0:00:00]} 13. Qd2 {[%clk 0:00:00]}  Qe7 {[%clk 0:00:00]} 14. Rfd1 {[%clk 0:00:00]}  Rfd8 {[%clk 0:00:00]} 15. b3 {[%clk 0:00:00]}  Rac8 {[%clk 0:00:00]} 16. Nd5 {[%clk 0:00:00]}  Bxd5 {[%clk 0:00:00]} 17. cxd5 {[%clk 0:00:00]}  Nb8 {[%clk 0:00:00]} 18. f3 {[%clk 0:00:00]}  Nbd7 {[%clk 0:00:00]} 19. Ne3 {[%clk 0:00:00]}  g6 {[%clk 0:00:00]} 20. b4 {[%clk 0:00:00]}  Nb6 {[%clk 0:00:00]} 21. Qb2 {[%clk 0:00:00]}  Na4 {[%clk 0:00:00]} 22. Qb3 {[%clk 0:00:00]}  b5 {[%clk 0:00:00]} 23. Rc6 {[%clk 0:00:00]}  Rxc6 {[%clk 0:00:00]} 24. dxc6 {[%clk 0:00:00]}  Qa7 {[%clk 0:00:00]} 25. Kh1 {[%clk 0:00:00]}  Qb6 {[%clk 0:00:00]} 26. Rc1 {[%clk 0:00:00]}  Rc8 {[%clk 0:00:00]} 27. Nd5 {[%clk 0:00:00]}  Nxd5 {[%clk 0:00:00]} 28. exd5 {[%clk 0:00:00]}  Qf2 {[%clk 0:00:00]} 29. Bf1 {[%clk 0:00:00]}  Qd4 {[%clk 0:00:00]} 30. a3 {[%clk 0:00:00]}  Rc7 {[%clk 0:00:00]} 31. Rd1 {[%clk 0:00:00]}  Qb2 {[%clk 0:00:00]} 32. Qxb2 {[%clk 0:00:00]}  Nxb2 {[%clk 0:00:00]} 33. Rc1 {[%clk 0:00:00]}  Na4 {[%clk 0:00:00]} 34. g4 {[%clk 0:00:00]}  Nb6 {[%clk 0:00:00]} 35. Rd1 {[%clk 0:00:00]}  f5 {[%clk 0:00:00]} 36. gxf5 {[%clk 0:00:00]}  gxf5 {[%clk 0:00:00]} 37. Bh3 {[%clk 0:00:00]}  f4 {[%clk 0:00:00]} 38. Be6+ {[%clk 0:00:00]}  Kg7 {[%clk 0:00:00]} 39. Rg1+ {[%clk 0:00:00]}  Kf6 {[%clk 0:00:00]} 40. Rg8 {[%clk 0:00:00]}  Nc4 {[%clk 0:00:00]} 41. Rf8+ {[%clk 0:00:00]}  Kg7 {[%clk 0:00:00]} 42. Rc8 {[%clk 0:00:00]}  Rxc8 {[%clk 0:00:00]} 43. Bxc8 {[%clk 0:00:00]}  e4 {[%clk 0:00:00]} 44. fxe4 {[%clk 0:00:00]}  f3 {[%clk 0:00:00]} 45. Kg1 {[%clk 0:00:00]}  Nd2 {[%clk 0:00:00]} 46. Bf5 {[%clk 0:00:00]} 1-0


[Site "https://www.chess.com"]

[Event "Titled Tuesday Blitz August 16 Early 2022"]
[White "Korelskiy, Egor"]
[Black "Demchenko, Anton"]
[WhiteFideId "34329064"]
[BlackFideId "4160258"]
[WhiteElo "2077"]
[BlackElo "2539"]
[Result "0-1"]
[Round "03"]
[TimeControl "180+2"]
[Date "2022.08.18"]
[WhiteClock "0:00:00"]
[BlackClock "0:00:00"]

1. e4 {[%clk 0:00:00]}  c6 {[%clk 0:00:00]} 2. Nc3 {[%clk 0:00:00]}  g6 {[%clk 0:00:00]} 3. g3 {[%clk 0:00:00]}  d5 {[%clk 0:00:00]} 4. exd5 {[%clk 0:00:00]}  cxd5 {[%clk 0:00:00]} 5. d4 {[%clk 0:00:00]}  Nf6 {[%clk 0:00:00]} 6. Bg2 {[%clk 0:00:00]}  Nc6 {[%clk 0:00:00]} 7. Nf3 {[%clk 0:00:00]}  Bf5 {[%clk 0:00:00]} 8. Bf4 {[%clk 0:00:00]}  e6 {[%clk 0:00:00]} 9. O-O {[%clk 0:00:00]}  Bd6 {[%clk 0:00:00]} 10. Bh6 {[%clk 0:00:00]}  Ng4 {[%clk 0:00:00]} 11. Bg5 {[%clk 0:00:00]}  Be7 {[%clk 0:00:00]} 12. Bxe7 {[%clk 0:00:00]}  Qxe7 {[%clk 0:00:00]} 13. Re1 {[%clk 0:00:00]}  O-O-O {[%clk 0:00:00]} 14. Nh4 {[%clk 0:00:00]}  Nf6 {[%clk 0:00:00]} 15. h3 {[%clk 0:00:00]}  h5 {[%clk 0:00:00]} 16. Qd2 {[%clk 0:00:00]}  Qb4 {[%clk 0:00:00]} 17. Red1 {[%clk 0:00:00]}  Qxb2 {[%clk 0:00:00]} 18. Nxf5 {[%clk 0:00:00]}  gxf5 {[%clk 0:00:00]} 19. Rab1 {[%clk 0:00:00]}  Qa3 {[%clk 0:00:00]} 20. Nb5 {[%clk 0:00:00]}  Qe7 {[%clk 0:00:00]} 21. c4 {[%clk 0:00:00]}  h4 {[%clk 0:00:00]} 22. cxd5 {[%clk 0:00:00]}  Nxd5 {[%clk 0:00:00]} 23. Rdc1 {[%clk 0:00:00]}  Kd7 {[%clk 0:00:00]} 24. Nxa7 {[%clk 0:00:00]}  Rb8 {[%clk 0:00:00]} 25. Nxc6 {[%clk 0:00:00]}  bxc6 {[%clk 0:00:00]} 26. Qc2 {[%clk 0:00:00]}  Qd6 {[%clk 0:00:00]} 0-1


[Site "https://www.chess.com"]

[Event "Titled Tuesday Blitz August 16 Early 2022"]
[White "Kostiukov, Alexandr"]
[Black "Gonzalez Vega, Alejandro"]
[WhiteFideId "14108100"]
[BlackFideId "3510042"]
[WhiteElo "2202"]
[BlackElo "2092"]
[Result "1-0"]
[Round "03"]
[TimeControl "180+2"]
[Date "2022.08.18"]
[WhiteClock "0:00:00"]
[BlackClock "0:00:00"]

1. g3 {[%clk 0:00:00]}  d5 {[%clk 0:00:00]} 2. Bg2 {[%clk 0:00:00]}  Nf6 {[%clk 0:00:00]} 3. d3 {[%clk 0:00:00]}  Bf5 {[%clk 0:00:00]} 4. Nc3 {[%clk 0:00:00]}  e6 {[%clk 0:00:00]} 5. e4 {[%clk 0:00:00]}  dxe4 {[%clk 0:00:00]} 6. Nxe4 {[%clk 0:00:00]}  Nxe4 {[%clk 0:00:00]} 7. dxe4 {[%clk 0:00:00]}  Qxd1+ {[%clk 0:00:00]} 8. Kxd1 {[%clk 0:00:00]}  Bg6 {[%clk 0:00:00]} 9. Be3 {[%clk 0:00:00]}  Nc6 {[%clk 0:00:00]} 10. Ke2 {[%clk 0:00:00]}  O-O-O {[%clk 0:00:00]} 11. c3 {[%clk 0:00:00]}  Ne5 {[%clk 0:00:00]} 12. b3 {[%clk 0:00:00]}  Be7 {[%clk 0:00:00]} 13. f3 {[%clk 0:00:00]}  h5 {[%clk 0:00:00]} 14. Nh3 {[%clk 0:00:00]}  f6 {[%clk 0:00:00]} 15. Nf4 {[%clk 0:00:00]}  Bf7 {[%clk 0:00:00]} 16. Bh3 {[%clk 0:00:00]}  Kb8 {[%clk 0:00:00]} 17. Nxe6 {[%clk 0:00:00]}  Bxe6 {[%clk 0:00:00]} 18. Bxe6 {[%clk 0:00:00]}  h4 {[%clk 0:00:00]} 19. f4 {[%clk 0:00:00]}  Nc6 {[%clk 0:00:00]} 20. g4 {[%clk 0:00:00]}  Bd6 {[%clk 0:00:00]} 21. Bd5 {[%clk 0:00:00]}  Ne7 {[%clk 0:00:00]} 22. Be6 {[%clk 0:00:00]}  Nc6 {[%clk 0:00:00]} 23. Kf3 {[%clk 0:00:00]}  g6 {[%clk 0:00:00]} 24. Rad1 {[%clk 0:00:00]}  Rdf8 {[%clk 0:00:00]} 25. b4 {[%clk 0:00:00]}  a6 {[%clk 0:00:00]} 26. a3 {[%clk 0:00:00]}  g5 {[%clk 0:00:00]} 27. h3 {[%clk 0:00:00]}  gxf4 {[%clk 0:00:00]} 28. Bxf4 {[%clk 0:00:00]}  Ne5+ {[%clk 0:00:00]} 29. Ke3 {[%clk 0:00:00]}  Re8 {[%clk 0:00:00]} 30. Bb3 {[%clk 0:00:00]}  Rh7 {[%clk 0:00:00]} 31. g5 {[%clk 0:00:00]}  fxg5 {[%clk 0:00:00]} 32. Bxg5 {[%clk 0:00:00]}  Rh5 {[%clk 0:00:00]} 33. Rhg1 {[%clk 0:00:00]}  Rf8 {[%clk 0:00:00]} 34. Ke2 {[%clk 0:00:00]}  Nf3 {[%clk 0:00:00]} 35. Be3 {[%clk 0:00:00]}  Nxg1+ {[%clk 0:00:00]} 36. Rxg1 {[%clk 0:00:00]}  Bg3 {[%clk 0:00:00]} 37. Rd1 {[%clk 0:00:00]}  Re5 {[%clk 0:00:00]} 38. Bc2 {[%clk 0:00:00]}  Rfe8 {[%clk 0:00:00]} 39. Bd4 {[%clk 0:00:00]}  R5e7 {[%clk 0:00:00]} 40. Rf1 {[%clk 0:00:00]}  b6 {[%clk 0:00:00]} 41. Rf5 {[%clk 0:00:00]}  Rxe4+ {[%clk 0:00:00]} 42. Bxe4 {[%clk 0:00:00]}  Rxe4+ {[%clk 0:00:00]} 43. Kf3 {[%clk 0:00:00]}  Re1 {[%clk 0:00:00]} 44. a4 {[%clk 0:00:00]}  Rf1+ {[%clk 0:00:00]} 45. Kg4 {[%clk 0:00:00]}  Rh1 {[%clk 0:00:00]} 46. a5 {[%clk 0:00:00]}  bxa5 {[%clk 0:00:00]} 47. Rxa5 {[%clk 0:00:00]}  Kb7 {[%clk 0:00:00]} 48. Rf5 {[%clk 0:00:00]}  Re1 {[%clk 0:00:00]} 49. Rf7 {[%clk 0:00:00]}  Re4+ {[%clk 0:00:00]} 50. Kf3 {[%clk 0:00:00]}  Re1 {[%clk 0:00:00]} 51. Kg4 {[%clk 0:00:00]}  Re4+ {[%clk 0:00:00]} 52. Kf3 {[%clk 0:00:00]}  Re1 {[%clk 0:00:00]} 53. Rg7 {[%clk 0:00:00]}  Rf1+ {[%clk 0:00:00]} 54. Kg4 {[%clk 0:00:00]}  Rf4+ {[%clk 0:00:00]} 55. Kh5 {[%clk 0:00:00]}  Rf1 {[%clk 0:00:00]} 56. Rg5 {[%clk 0:00:00]}  Rh1 {[%clk 0:00:00]} 57. Kg4 {[%clk 0:00:00]}  Rf1 {[%clk 0:00:00]} 58. Be5 {[%clk 0:00:00]}  Rg1 {[%clk 0:00:00]} 59. Kh5 {[%clk 0:00:00]}  Rg2 {[%clk 0:00:00]} 60. Rg7 {[%clk 0:00:00]}  Rg1 {[%clk 0:00:00]} 61. Rxc7+ {[%clk 0:00:00]}  Kb6 {[%clk 0:00:00]} 62. Rg7 {[%clk 0:00:00]}  Rd1 {[%clk 0:00:00]} 63. Bd4+ {[%clk 0:00:00]}  Kb5 {[%clk 0:00:00]} 64. Rg5+ {[%clk 0:00:00]}  Kc4 {[%clk 0:00:00]} 65. Ra5 {[%clk 0:00:00]}  Rf1 {[%clk 0:00:00]} 66. Rxa6 {[%clk 0:00:00]}  Rf5+ {[%clk 0:00:00]} 67. Kg4 {[%clk 0:00:00]}  Rf4+ {[%clk 0:00:00]} 68. Kg5 {[%clk 0:00:00]}  Rf5+ {[%clk 0:00:00]} 69. Kxf5 {[%clk 0:00:00]} 1-0


[Site "https://www.chess.com"]

[Event "Titled Tuesday Blitz August 16 Early 2022"]
[White "Lagno, Kateryna"]
[Black "Iljin, Timofey"]
[WhiteFideId "14109336"]
[BlackFideId "14110180"]
[WhiteElo "2522"]
[BlackElo "2404"]
[Result "0-1"]
[Round "03"]
[TimeControl "180+1"]
[Date "2022.08.16"]
[WhiteClock "0:00:01"]
[BlackClock "0:00:37"]

1. e4 {[%clk 0:02:59]}  d5 {[%clk 0:03:00]} 2. exd5 {[%clk 0:02:58]}  Nf6 {[%clk 0:03:01]} 3. d4 {[%clk 0:02:56]}  Bg4 {[%clk 0:03:01]} 4. f3 {[%clk 0:02:54]}  Bf5 {[%clk 0:03:01]} 5. c4 {[%clk 0:02:49]}  e6 {[%clk 0:03:01]} 6. dxe6 {[%clk 0:02:44]}  Nc6 {[%clk 0:03:00]} 7. Be3 {[%clk 0:02:17]}  Nb4 {[%clk 0:02:54]} 8. Na3 {[%clk 0:02:13]}  fxe6 {[%clk 0:02:54]} 9. g4 {[%clk 0:02:01]}  Bg6 {[%clk 0:02:54]} 10. Nh3 {[%clk 0:02:01]}  c5 {[%clk 0:02:43]} 11. dxc5 {[%clk 0:01:49]}  Qa5 {[%clk 0:02:42]} 12. Kf2 {[%clk 0:01:29]}  Rd8 {[%clk 0:02:37]} 13. Qe1 {[%clk 0:01:27]}  Bxc5 {[%clk 0:02:37]} 14. Nf4 {[%clk 0:01:20]}  O-O {[%clk 0:02:28]} 15. Kg3 {[%clk 0:01:10]}  Bxe3 {[%clk 0:01:43]} 16. Qxe3 {[%clk 0:01:09]}  Qg5 {[%clk 0:01:44]} 17. Re1 {[%clk 0:00:42]}  Be4 {[%clk 0:00:44]} 18. h4 {[%clk 0:00:26]}  Qe5 {[%clk 0:00:44]} 19. fxe4 {[%clk 0:00:19]}  Rd4 {[%clk 0:00:44]} 20. Be2 {[%clk 0:00:03]}  Rxe4 {[%clk 0:00:40]} 21. Qf3 {[%clk 0:00:03]}  Rxf4 {[%clk 0:00:37]} 22. Qxf4 {[%clk 0:00:01]}  Nh5+ {[%clk 0:00:37]} 0-1


[Site "https://www.chess.com"]

[Event "Titled Tuesday Blitz August 16 Early 2022"]
[White "Langner, Ladislav"]
[Black "Clawitter, Craig"]
[WhiteFideId "300403"]
[BlackFideId "2023105"]
[WhiteElo "2346"]
[BlackElo "2050"]
[Result "1-0"]
[Round "03"]
[TimeControl "180+2"]
[Date "2022.08.18"]
[WhiteClock "0:00:00"]
[BlackClock "0:00:00"]

1. e4 {[%clk 0:00:00]}  e6 {[%clk 0:00:00]} 2. d4 {[%clk 0:00:00]}  d5 {[%clk 0:00:00]} 3. e5 {[%clk 0:00:00]}  c5 {[%clk 0:00:00]} 4. c3 {[%clk 0:00:00]}  Qb6 {[%clk 0:00:00]} 5. Nf3 {[%clk 0:00:00]}  Nc6 {[%clk 0:00:00]} 6. a3 {[%clk 0:00:00]}  Nh6 {[%clk 0:00:00]} 7. b4 {[%clk 0:00:00]}  cxd4 {[%clk 0:00:00]} 8. cxd4 {[%clk 0:00:00]}  Nf5 {[%clk 0:00:00]} 9. Be3 {[%clk 0:00:00]}  f6 {[%clk 0:00:00]} 10. exf6 {[%clk 0:00:00]}  gxf6 {[%clk 0:00:00]} 11. Bd3 {[%clk 0:00:00]}  Nxe3 {[%clk 0:00:00]} 12. fxe3 {[%clk 0:00:00]}  Bh6 {[%clk 0:00:00]} 13. Qe2 {[%clk 0:00:00]}  O-O {[%clk 0:00:00]} 14. Nc3 {[%clk 0:00:00]}  Ne7 {[%clk 0:00:00]} 15. O-O {[%clk 0:00:00]}  Bd7 {[%clk 0:00:00]} 16. Rae1 {[%clk 0:00:00]}  Rac8 {[%clk 0:00:00]} 17. Nd1 {[%clk 0:00:00]}  Be8 {[%clk 0:00:00]} 18. Nh4 {[%clk 0:00:00]}  Kh8 {[%clk 0:00:00]} 19. Qg4 {[%clk 0:00:00]}  Rg8 {[%clk 0:00:00]} 20. Qh3 {[%clk 0:00:00]}  Bg5 {[%clk 0:00:00]} 21. Nf3 {[%clk 0:00:00]}  Bg6 {[%clk 0:00:00]} 22. Bxg6 {[%clk 0:00:00]}  Nxg6 {[%clk 0:00:00]} 23. Nxg5 {[%clk 0:00:00]}  fxg5 {[%clk 0:00:00]} 24. Rf6 {[%clk 0:00:00]}  Rc6 {[%clk 0:00:00]} 25. Ref1 {[%clk 0:00:00]}  e5 {[%clk 0:00:00]} 26. Rf7 {[%clk 0:00:00]}  Rg7 {[%clk 0:00:00]} 27. Qh6 {[%clk 0:00:00]} 1-0


[Site "https://www.chess.com"]

[Event "Titled Tuesday Blitz August 16 Early 2022"]
[White "Lauridsen, Jesper Morch"]
[Black "Karaev, Seit-Amet"]
[WhiteFideId "1401890"]
[BlackFideId "4169549"]
[WhiteElo "2221"]
[BlackElo "2272"]
[Result "0-1"]
[Round "03"]
[TimeControl "180+2"]
[Date "2022.08.18"]
[WhiteClock "0:00:00"]
[BlackClock "0:00:00"]

1. e4 {[%clk 0:00:00]}  Nf6 {[%clk 0:00:00]} 2. e5 {[%clk 0:00:00]}  Nd5 {[%clk 0:00:00]} 3. d4 {[%clk 0:00:00]}  d6 {[%clk 0:00:00]} 4. Nf3 {[%clk 0:00:00]}  g6 {[%clk 0:00:00]} 5. Be2 {[%clk 0:00:00]}  Bg7 {[%clk 0:00:00]} 6. O-O {[%clk 0:00:00]}  O-O {[%clk 0:00:00]} 7. exd6 {[%clk 0:00:00]}  cxd6 {[%clk 0:00:00]} 8. c4 {[%clk 0:00:00]}  Nb6 {[%clk 0:00:00]} 9. h3 {[%clk 0:00:00]}  Nc6 {[%clk 0:00:00]} 10. Nc3 {[%clk 0:00:00]}  h6 {[%clk 0:00:00]} 11. Be3 {[%clk 0:00:00]}  e5 {[%clk 0:00:00]} 12. dxe5 {[%clk 0:00:00]}  dxe5 {[%clk 0:00:00]} 13. Qxd8 {[%clk 0:00:00]}  Rxd8 {[%clk 0:00:00]} 14. Bxb6 {[%clk 0:00:00]}  axb6 {[%clk 0:00:00]} 15. Nd5 {[%clk 0:00:00]}  e4 {[%clk 0:00:00]} 16. Nd2 {[%clk 0:00:00]}  Bxb2 {[%clk 0:00:00]} 17. Rab1 {[%clk 0:00:00]}  Rxa2 {[%clk 0:00:00]} 18. Nxe4 {[%clk 0:00:00]}  Bf5 {[%clk 0:00:00]} 19. Bf3 {[%clk 0:00:00]}  Kg7 {[%clk 0:00:00]} 20. Nxb6 {[%clk 0:00:00]}  Re8 {[%clk 0:00:00]} 21. Nd6 {[%clk 0:00:00]}  Bxb1 {[%clk 0:00:00]} 22. Nxe8+ {[%clk 0:00:00]}  Kf8 {[%clk 0:00:00]} 23. Rxb1 {[%clk 0:00:00]}  Kxe8 {[%clk 0:00:00]} 24. Nd5 {[%clk 0:00:00]}  Bd4 {[%clk 0:00:00]} 25. Rxb7 {[%clk 0:00:00]}  Bxf2+ {[%clk 0:00:00]} 26. Kh2 {[%clk 0:00:00]}  Nd4 {[%clk 0:00:00]} 27. Nf6+ {[%clk 0:00:00]}  Kf8 {[%clk 0:00:00]} 28. Bd5 {[%clk 0:00:00]}  Ne6 {[%clk 0:00:00]} 29. Bxe6 {[%clk 0:00:00]}  fxe6 {[%clk 0:00:00]} 30. c5 {[%clk 0:00:00]}  Rc2 {[%clk 0:00:00]} 31. Nd7+ {[%clk 0:00:00]}  Ke7 {[%clk 0:00:00]} 32. c6 {[%clk 0:00:00]}  Kd6 {[%clk 0:00:00]} 33. Nb8 {[%clk 0:00:00]}  h5 {[%clk 0:00:00]} 34. Rg7 {[%clk 0:00:00]}  h4 {[%clk 0:00:00]} 35. Rd7+ {[%clk 0:00:00]}  Ke5 {[%clk 0:00:00]} 36. Rd1 {[%clk 0:00:00]}  Bg3+ {[%clk 0:00:00]} 37. Kg1 {[%clk 0:00:00]}  Kf6 {[%clk 0:00:00]} 38. Nd7+ {[%clk 0:00:00]}  Ke7 {[%clk 0:00:00]} 39. Nb8 {[%clk 0:00:00]}  Bxb8 {[%clk 0:00:00]} 0-1


[Site "https://www.chess.com"]

[Event "Titled Tuesday Blitz August 16 Early 2022"]
[White "Lehtosaari, Mauri"]
[Black "Mirzoev, Emil"]
[WhiteFideId "501999"]
[BlackFideId "14108640"]
[WhiteElo "2200"]
[BlackElo "2438"]
[Result "0-1"]
[Round "03"]
[TimeControl "180+2"]
[Date "2022.08.18"]
[WhiteClock "0:00:00"]
[BlackClock "0:00:00"]

1. d4 {[%clk 0:00:00]}  e6 {[%clk 0:00:00]} 2. Nf3 {[%clk 0:00:00]}  c5 {[%clk 0:00:00]} 3. e3 {[%clk 0:00:00]}  Nf6 {[%clk 0:00:00]} 4. Bd3 {[%clk 0:00:00]}  b6 {[%clk 0:00:00]} 5. O-O {[%clk 0:00:00]}  Bb7 {[%clk 0:00:00]} 6. b3 {[%clk 0:00:00]}  d6 {[%clk 0:00:00]} 7. Bb2 {[%clk 0:00:00]}  Nbd7 {[%clk 0:00:00]} 8. Nbd2 {[%clk 0:00:00]}  Be7 {[%clk 0:00:00]} 9. c3 {[%clk 0:00:00]}  O-O {[%clk 0:00:00]} 10. Re1 {[%clk 0:00:00]}  Qc7 {[%clk 0:00:00]} 11. Rc1 {[%clk 0:00:00]}  Rad8 {[%clk 0:00:00]} 12. Qe2 {[%clk 0:00:00]}  Qb8 {[%clk 0:00:00]} 13. e4 {[%clk 0:00:00]}  e5 {[%clk 0:00:00]} 14. Bb5 {[%clk 0:00:00]}  Ne8 {[%clk 0:00:00]} 15. Bxd7 {[%clk 0:00:00]}  Rxd7 {[%clk 0:00:00]} 16. d5 {[%clk 0:00:00]}  Rd8 {[%clk 0:00:00]} 17. c4 {[%clk 0:00:00]}  Bc8 {[%clk 0:00:00]} 18. h3 {[%clk 0:00:00]}  g6 {[%clk 0:00:00]} 19. Nh2 {[%clk 0:00:00]}  Ng7 {[%clk 0:00:00]} 20. Ng4 {[%clk 0:00:00]}  f5 {[%clk 0:00:00]} 21. exf5 {[%clk 0:00:00]}  gxf5 {[%clk 0:00:00]} 22. Nxe5 {[%clk 0:00:00]}  dxe5 {[%clk 0:00:00]} 23. Bxe5 {[%clk 0:00:00]}  Bd6 {[%clk 0:00:00]} 24. f4 {[%clk 0:00:00]}  Rde8 {[%clk 0:00:00]} 25. Nf3 {[%clk 0:00:00]}  Bd7 {[%clk 0:00:00]} 26. g3 {[%clk 0:00:00]}  Nh5 {[%clk 0:00:00]} 27. Kh2 {[%clk 0:00:00]}  Nf6 {[%clk 0:00:00]} 28. Ng5 {[%clk 0:00:00]}  h6 {[%clk 0:00:00]} 29. Nf3 {[%clk 0:00:00]}  Ne4 {[%clk 0:00:00]} 30. Bxd6 {[%clk 0:00:00]}  Qxd6 {[%clk 0:00:00]} 31. Ne5 {[%clk 0:00:00]}  Rxe5 {[%clk 0:00:00]} 32. fxe5 {[%clk 0:00:00]}  Qxe5 {[%clk 0:00:00]} 33. Qf3 {[%clk 0:00:00]}  Kh7 {[%clk 0:00:00]} 34. Rc2 {[%clk 0:00:00]}  Rg8 {[%clk 0:00:00]} 35. Rg2 {[%clk 0:00:00]}  Ng5 {[%clk 0:00:00]} 36. Qf2 {[%clk 0:00:00]}  Qxe1 {[%clk 0:00:00]} 0-1


[Site "https://www.chess.com"]

[Event "Titled Tuesday Blitz August 16 Early 2022"]
[White "Maiorov, Nikita"]
[Black "Orzech, Dominik"]
[WhiteFideId "13501720"]
[BlackFideId "1115065"]
[WhiteElo "2409"]
[BlackElo "2272"]
[Result "1-0"]
[Round "03"]
[TimeControl "180+2"]
[Date "2022.08.18"]
[WhiteClock "0:00:00"]
[BlackClock "0:00:00"]

1. d4 {[%clk 0:00:00]}  Nf6 {[%clk 0:00:00]} 2. c4 {[%clk 0:00:00]}  c6 {[%clk 0:00:00]} 3. Nc3 {[%clk 0:00:00]}  d5 {[%clk 0:00:00]} 4. e3 {[%clk 0:00:00]}  e6 {[%clk 0:00:00]} 5. Nf3 {[%clk 0:00:00]}  Nbd7 {[%clk 0:00:00]} 6. Qc2 {[%clk 0:00:00]}  Be7 {[%clk 0:00:00]} 7. b3 {[%clk 0:00:00]}  O-O {[%clk 0:00:00]} 8. Bd3 {[%clk 0:00:00]}  b6 {[%clk 0:00:00]} 9. O-O {[%clk 0:00:00]}  Bb7 {[%clk 0:00:00]} 10. Bb2 {[%clk 0:00:00]}  Qc7 {[%clk 0:00:00]} 11. Rac1 {[%clk 0:00:00]}  Rad8 {[%clk 0:00:00]} 12. cxd5 {[%clk 0:00:00]}  exd5 {[%clk 0:00:00]} 13. Ne2 {[%clk 0:00:00]}  Bd6 {[%clk 0:00:00]} 14. Ng3 {[%clk 0:00:00]}  g6 {[%clk 0:00:00]} 15. Qe2 {[%clk 0:00:00]}  Rfe8 {[%clk 0:00:00]} 16. Qc2 {[%clk 0:00:00]}  Qb8 {[%clk 0:00:00]} 17. Rfe1 {[%clk 0:00:00]}  Re7 {[%clk 0:00:00]} 18. a4 {[%clk 0:00:00]}  a5 {[%clk 0:00:00]} 19. Rcd1 {[%clk 0:00:00]}  Rde8 {[%clk 0:00:00]} 20. Qc1 {[%clk 0:00:00]}  Ne4 {[%clk 0:00:00]} 21. Ba3 {[%clk 0:00:00]}  f5 {[%clk 0:00:00]} 22. Bxd6 {[%clk 0:00:00]}  Qxd6 {[%clk 0:00:00]} 23. Qb2 {[%clk 0:00:00]}  f4 {[%clk 0:00:00]} 24. exf4 {[%clk 0:00:00]}  Qxf4 {[%clk 0:00:00]} 25. Nxe4 {[%clk 0:00:00]}  dxe4 {[%clk 0:00:00]} 26. Bc4+ {[%clk 0:00:00]}  Kf8 {[%clk 0:00:00]} 27. Nd2 {[%clk 0:00:00]}  Nf6 {[%clk 0:00:00]} 28. Nf1 {[%clk 0:00:00]}  Nd5 {[%clk 0:00:00]} 29. Ne3 {[%clk 0:00:00]}  Rd8 {[%clk 0:00:00]} 30. Bxd5 {[%clk 0:00:00]}  cxd5 {[%clk 0:00:00]} 31. Rc1 {[%clk 0:00:00]}  Rf7 {[%clk 0:00:00]} 32. Rc2 {[%clk 0:00:00]}  Kg8 {[%clk 0:00:00]} 33. b4 {[%clk 0:00:00]}  Ba6 {[%clk 0:00:00]} 34. bxa5 {[%clk 0:00:00]}  bxa5 {[%clk 0:00:00]} 35. Qb6 {[%clk 0:00:00]}  Rd6 {[%clk 0:00:00]} 36. Qb8+ {[%clk 0:00:00]}  Rf8 {[%clk 0:00:00]} 37. Qc7 {[%clk 0:00:00]}  Bd3 {[%clk 0:00:00]} 38. Rd2 {[%clk 0:00:00]}  Qf6 {[%clk 0:00:00]} 39. Qc5 {[%clk 0:00:00]}  Rfd8 {[%clk 0:00:00]} 40. h3 {[%clk 0:00:00]}  Kh8 {[%clk 0:00:00]} 41. Rb2 {[%clk 0:00:00]}  Rc6 {[%clk 0:00:00]} 42. Qxa5 {[%clk 0:00:00]}  Bc4 {[%clk 0:00:00]} 43. Qd2 {[%clk 0:00:00]}  Ra8 {[%clk 0:00:00]} 44. a5 {[%clk 0:00:00]}  Qe6 {[%clk 0:00:00]} 45. Ng4 {[%clk 0:00:00]}  Rca6 {[%clk 0:00:00]} 46. Rb7 {[%clk 0:00:00]}  Rxa5 {[%clk 0:00:00]} 47. Qh6 {[%clk 0:00:00]}  Qg8 {[%clk 0:00:00]} 48. Nf6 {[%clk 0:00:00]} 1-0


[Site "https://www.chess.com"]

[Event "Titled Tuesday Blitz August 16 Early 2022"]
[White "Mamedov, Rauf"]
[Black "Matinian, Nikita"]
[WhiteFideId "13401653"]
[BlackFideId "24129100"]
[WhiteElo "2666"]
[BlackElo "2422"]
[Result "1-0"]
[Round "03"]
[TimeControl "180+1"]
[Date "2022.08.16"]
[WhiteClock "0:00:10"]
[BlackClock "0:00:03"]

1. e4 {[%clk 0:03:00]}  e5 {[%clk 0:02:57]} 2. Nf3 {[%clk 0:03:00]}  Nc6 {[%clk 0:02:58]} 3. Bc4 {[%clk 0:03:00]}  Nf6 {[%clk 0:02:56]} 4. d3 {[%clk 0:03:00]}  h6 {[%clk 0:02:51]} 5. Nc3 {[%clk 0:03:00]}  d6 {[%clk 0:02:49]} 6. h3 {[%clk 0:02:59]}  g5 {[%clk 0:02:44]} 7. Be3 {[%clk 0:02:58]}  Bg7 {[%clk 0:02:43]} 8. Qd2 {[%clk 0:02:58]}  Na5 {[%clk 0:02:39]} 9. Bb3 {[%clk 0:02:54]}  Nxb3 {[%clk 0:02:38]} 10. axb3 {[%clk 0:02:55]}  a6 {[%clk 0:02:31]} 11. d4 {[%clk 0:02:55]}  exd4 {[%clk 0:02:30]} 12. Nxd4 {[%clk 0:02:54]}  O-O {[%clk 0:02:29]} 13. h4 {[%clk 0:02:54]}  Ng4 {[%clk 0:02:27]} 14. hxg5 {[%clk 0:02:53]}  Nxe3 {[%clk 0:02:25]} 15. gxh6 {[%clk 0:02:30]}  Nxg2+ {[%clk 0:01:20]} 16. Kf1 {[%clk 0:02:29]}  Be5 {[%clk 0:00:57]} 17. h7+ {[%clk 0:02:13]}  Kh8 {[%clk 0:00:56]} 18. Kxg2 {[%clk 0:02:13]}  f5 {[%clk 0:00:52]} 19. f4 {[%clk 0:02:05]}  Bg7 {[%clk 0:00:50]} 20. exf5 {[%clk 0:01:03]}  Bxf5 {[%clk 0:00:51]} 21. Nxf5 {[%clk 0:01:03]}  Rxf5 {[%clk 0:00:50]} 22. Raf1 {[%clk 0:00:59]}  Qd7 {[%clk 0:00:47]} 23. Rf3 {[%clk 0:00:56]}  Raf8 {[%clk 0:00:45]} 24. Ne4 {[%clk 0:00:55]}  Be5 {[%clk 0:00:39]} 25. Rh4 {[%clk 0:00:49]}  Qc6 {[%clk 0:00:22]} 26. Qe3 {[%clk 0:00:42]}  Bxb2 {[%clk 0:00:22]} 27. c3 {[%clk 0:00:41]}  Qd5 {[%clk 0:00:15]} 28. Rg3 {[%clk 0:00:32]}  Re8 {[%clk 0:00:10]} 29. Qf3 {[%clk 0:00:32]}  Qe6 {[%clk 0:00:05]} 30. Kh2 {[%clk 0:00:16]}  d5 {[%clk 0:00:03]} 31. Qg4 {[%clk 0:00:10]} 1-0


[Site "https://www.chess.com"]